Cogmind - Beta 16 @@@ ROGUE MODE // 2025.11.19 @ 19:10:27 Player: ClassActJerk Result: Destroyed by G-34 Mercenary with Small Laser Performance ------------- Evolutions (0) 0 Regions Visited (4) 800 Robots Destroyed (3) 15 Value Destroyed (115) 115 Prototype IDs (0) 0 Alien Tech Used (0) 0 Bonus (0) 0 TOTAL SCORE: 930 Bonus ------- None Cogmind --------- Core Integrity 0/250 Matter 234/300 Energy 100/100 System Corruption 0% Temperature Cool (15) Movement Core (50) Location -9/Mines Parts ------- > --- POWER (1) -------- (None) > --- PROPULSION (2) --- (None) > --- UTILITY (2) ------ (None) > --- WEAPON (2) ------- (None) > --- INVENTORY (5) ---- Reinforced Deuterium Engine Core Shielding Peak State ------------ > --- POWER ------------ (None) > --- PROPULSION ------- Aluminum Leg Improved Aluminum Leg > --- UTILITY ---------- Humpback > --- WEAPON ----------- Light Assault Rifle Mining Laser > --- INVENTORY -------- Reinforced Deuterium Engine Core Shielding [Rating: 7] Favorites ----------- Power None Propulsion Aluminum Leg Leg Aluminum Leg Utility Humpback Storage Humpback Weapon Mining Laser Energy Gun Small Laser Ballistic Gun Light Assault Rifle Special Weapon Mining Laser Build | -11 -10 -10 -10 -9 ------- Run | Yrd Mat Min Exi Min Slots Evolved . | . . . . . Power . | . . . . . Propulsion . | . . . . . Utility . | . . . . . Weapon . | . . . . . Parts Attached 9 | 2 . . 1 6 Power . | . . . . . Engine . | . . . . . Core . | . . . . . Reactor . | . . . . . Propulsion 4 | 2 . . . 2 Treads . | . . . . . Leg 4 | 2 . . . 2 Wheel . | . . . . . Hover . | . . . . . Flight . | . . . . . Utility 1 | . . . 1 . Device . | . . . . . Storage 1 | . . . 1 . Processor . | . . . . . Hackware . | . . . . . Protection . | . . . . . Artifact . | . . . . . Weapon 4 | . . . . 4 Energy Gun 1 | . . . . 1 Energy Cannon . | . . . . . Ballistic Gun 2 | . . . . 2 Ballistic Cannon . | . . . . . Launcher . | . . . . . Special Weapon 1 | . . . . 1 Impact Weapon . | . . . . . Slashing Weapon . | . . . . . Piercing Weapon . | . . . . . Special Melee Weapon . | . . . . . Unidentified Prototypes . | . . . . . Parts Lost 8 | . . . . 8 Power . | . . . . . Propulsion 4 | . . . . 4 Utility 1 | . . . . 1 Weapon 3 | . . . . 3 Highest Loss Streak 4 | . . . . 4 To Critical Strikes . | . . . . . Average Backups 3 | . 2 4 4 3 Power . | . . . . 1 Propulsion . | . . . . . Utility . | . . 1 1 1 Weapon 1 | . 1 3 3 1 Tool/Special . | . . . . . Unused Backups 2 | . . . . 2 Power 1 | . . . . 1 Propulsion . | . . . . . Utility 1 | . . . . 1 Weapon . | . . . . . Tool/Special . | . . . . . Average Slot Usage (%) 42 | . 28 28 32 47 Leg 21 | . 28 28 28 18 Storage 10 | . . . 4 13 Energy Gun 4 | . . . . 6 Special Weapon 4 | . . . . 7 Peak Build Rating 7 | 2 2 2 4 7 Average Rating 3 | . 2 2 2 4 On Entrance 2 | . 2 2 2 4 Avg Prop Armor Cover (%) . | . . . . . Naked Turns 2 | . . . . 2 Heaviest Build 203 | . . . 200 203 Greatest Support 23 | 20 20 20 20 23 Greatest Overweight (x) 66 | . . . 9 66 Average Overweight (x) 3 | . . . . 14 Largest Inventory Capacity 35 | 5 5 5 35 35 Average Capacity 27 | 5 5 5 14 34 Most Carried 5 | 2 4 4 5 5 Average Carried 3 | . 2 4 4 3 Final Capacity 35 | 5 5 5 35 5 Final Carried 5 | . 4 4 5 2 Class Distribution -------------------- 75% | Hauler-Mutant 24% | Mutant Dominant Class ---------------- Mutant | -10/Materials Mutant | -10/Mines Mutant | -10/Exiles Hauler-Mutant | -9/Mines Resources | -11 -10 -10 -10 -9 ----------- Run | Yrd Mat Min Exi Min Matter Collected 214 | 157 . . . 57 Remotely . | . . . . . Salvage Created 80 | . . . . 80 Parts 7 | . . . . 7 Haulers Intercepted . | . . . . . Recyclers Shooed . | . . . . . Parts Field Recycled . | . . . . . Retrieved Matter . | . . . . . Parts Self-Destructed . | . . . . . Prevented . | . . . . . Parts Restored . | . . . . . Kills | -11 -10 -10 -10 -9 ------- Run | Yrd Mat Min Exi Min Combat Hostiles Destroyed 3 | . . . . 3 Guns 1 | . . . . 1 Cannons 2 | . . . . 2 Classes Destroyed 2 | . . . . 2 Grunt 2 | . . . . 2 Duelist 1 | . . . . 1 Best Kill Streak 1 | . . . . 1 Combat Bots Only 1 | . . . . 1 Max Kills in Single Turn 1 | . . . . 1 Gunslinging . | . . . . . Exploded . | . . . . . Melee . | . . . . . Uniques/NPCs Destroyed . | . . . . . Combat | -11 -10 -10 -10 -9 -------- Run | Yrd Mat Min Exi Min Hostile Shots Fired 117 | . . . . 117 Missed 23 | . . . . 23 Hits 94 | . . . . 94 Melee 8 | . . . . 8 Projectile 86 | . . . . 86 Critical Strikes 2 | . . . . 2 Damage Taken 1255 | . . . . 1255 Core 250 | . . . . 250 Absorbed by Shields . | . . . . . Core Remaining (%) 100 | 100 . . . . Volleys Fired 16 | . . . . 16 Largest 2 | . . . . 2 Hottest 120 | . . . . 120 Shots Fired 23 | . . . . 23 Gun 18 | . . . . 18 Cannon . | . . . . . Launcher . | . . . . . Special 5 | . . . . 5 Kinetic 18 | . . . . 18 Thermal 5 | . . . . 5 Explosive . | . . . . . Electromagnetic . | . . . . . Robot Hit Streak 6 | . . . . 6 Robot Miss Streak 2 | . . . . 2 Penetration Max . | . . . . . Secondary Targets . | . . . . . Shots Hit Robots 18 | . . . . 18 Core Hits 6 | . . . . 6 Critical Kills . | . . . . . Critical Parts Destroyed . | . . . . . Critical Strikes . | . . . . . Melee Attacks . | . . . . . Impact . | . . . . . Slashing . | . . . . . Piercing . | . . . . . Sneak Attacks . | . . . . . Combat Hostiles . | . . . . . Follow-up Attacks . | . . . . . Damage Inflicted 193 | . . . . 193 Guns 145 | . . . . 145 Cannons . | . . . . . Explosions . | . . . . . Melee . | . . . . . Ramming . | . . . . . Kinetic 145 | . . . . 145 Thermal 48 | . . . . 48 Explosive . | . . . . . Electromagnetic . | . . . . . Impact . | . . . . . Slashing . | . . . . . Piercing . | . . . . . Highest Corruption . | . . . . . Average Corruption . | . . . . . Corruption Purged . | . . . . . Corruption Blocked . | . . . . . Overload Shots . | . . . . . Overflow Damage . | . . . . . Projectiles . | . . . . . Explosions . | . . . . . Melee . | . . . . . Knockbacks . | . . . . . Impact . | . . . . . Kinetic . | . . . . . Secondary . | . . . . . Self-Inflicted Damage . | . . . . . Shots . | . . . . . Rammed . | . . . . . Targets Rammed . | . . . . . Kicked . | . . . . . Crushed . | . . . . . Highest Temperature 37 | . . . . 37 Average Temperature 13 | . . . . 13 Received Heat Transfer 570 | . . . . 570 Siege Activations . | . . . . . Martial Activations . | . . . . . Shielding Activations . | . . . . . Robots Disrupted . | . . . . . Combat Hostiles . | . . . . . Robots Corrupted . | . . . . . Combat Hostiles . | . . . . . Parts Fried . | . . . . . Impact Corruptions . | . . . . . Robots Melted . | . . . . . Combat Hostiles . | . . . . . Parts Melted . | . . . . . Heat Transferred 100 | . . . . 100 Parts Sabotaged . | . . . . . Parts Stolen . | . . . . . Parts Stripped . | . . . . . Power Chain Reactions . | . . . . . Alert | -11 -10 -10 -10 -9 ------- Run | Yrd Mat Min Exi Min Maximum Alert Level . | . . . . . Low Security (%) 100 | 100 100 100 . 100 Level 1 . | . . . . . Level 2 . | . . . . . Level 3 . | . . . . . Level 4 . | . . . . . Level 5 . | . . . . . High Security . | . . . . . Max Security . | . . . . . Peak Influence 30 | . . . . 30 Initial . | . . . . . Average 1 | . . . . 1 Influence Increases 73 | . . . . 73 Destroy 0b10 Robot/C 60 | . . . . 60 Destroy Leader 10 | . . . . 10 Destroy Structure 3 | . . . . 3 Influence Decreases 73 | . . . . 73 Time Decay 53 | . . . . 53 Lost Part 20 | . . . . 20 Squads Dispatched 1 | . 1 . . . Investigation 1 | . 1 . . . Extermination . | . . . . . Reinforcement . | . . . . . Assault . | . . . . . Garrison . | . . . . . Intercept . | . . . . . Searches Triggered . | . . . . . Construction Impeded . | . . . . . Haulers Reinforced . | . . . . . Active Scanning Responses . | . . . . . Cargo Convoy Interrupts . | . . . . . Stealth | -11 -10 -10 -10 -9 --------- Run | Yrd Mat Min Exi Min Distress Signals 1 | . 1 . . . Communications Jammed . | . . . . . Distress Signals . | . . . . . Times Spotted 7 | . 1 . . 6 Peak Tracking Total 3 | . 1 . . 3 Tactical Retreats . | . . . . . Traps | -11 -10 -10 -10 -9 ------- Run | Yrd Mat Min Exi Min Traps Triggered . | . . . . . Indirectly . | . . . . . Trap Hack Attempts . | . . . . . Triggered . | . . . . . Disarmed . | . . . . . Reprogrammed . | . . . . . Reused . | . . . . . Traps Extracted . | . . . . . Installed . | . . . . . Triggered . | . . . . . Machines | -11 -10 -10 -10 -9 ---------- Run | Yrd Mat Min Exi Min Machines Disabled . | . . . . . Max in Single Turn . | . . . . . Machines Repaired . | . . . . . Machines Dismantled . | . . . . . Machines Sabotaged . | . . . . . Overloaded Fab Kills . | . . . . . Hacking | -11 -10 -10 -10 -9 --------- Run | Yrd Mat Min Exi Min Machines Accessed 4 | . . . 4 . Terminals . | . . . . . Fabricators . | . . . . . Repair Stations . | . . . . . Recycling Units . | . . . . . Scanalyzers . | . . . . . Garrison Access . | . . . . . Total Hacks 49 | . . . 49 . Successful 49 | . . . 49 . Failed . | . . . . . Catastrophic . | . . . . . Database Lockouts . | . . . . . Manual . | . . . . . Terminals . | . . . . . Fabricators . | . . . . . Repair Stations . | . . . . . Recycling Units . | . . . . . Scanalyzers . | . . . . . Garrison Access . | . . . . . Terminal Hacks 49 | . . . 49 . Record 49 | . . . 49 . Fabricator Hacks . | . . . . . Repair Station Hacks . | . . . . . Recycling Unit Hacks . | . . . . . Scanalyzer . | . . . . . Garrison Access Hacks . | . . . . . Unauthorized Hacks . | . . . . . Terminals . | . . . . . Fabricators . | . . . . . Repair Stations . | . . . . . Recycling Units . | . . . . . Scanalyzers . | . . . . . Garrison Access . | . . . . . Data Cores Recovered . | . . . . . Used . | . . . . . Hacking Detections . | . . . . . Full Trace Events . | . . . . . Feedback Events . | . . . . . Feedback Blocked . | . . . . . Robot Schematics Acquired . | . . . . . Robots Built . | . . . . . Authchips . | . . . . . Time . | . . . . . Total Robot Build Rating . | . . . . . Part Schematics Acquired . | . . . . . Parts Built . | . . . . . Authchips . | . . . . . Time . | . . . . . Total Part Build Rating . | . . . . . Part Studies Acquired . | . . . . . Parts Repaired . | . . . . . Time . | . . . . . Parts Recycled . | . . . . . Recycled Matter . | . . . . . Retrieved Matter . | . . . . . Retrieved Components . | . . . . . Parts Scanalyzed . | . . . . . Part Schematics Acquired . | . . . . . Parts Damaged . | . . . . . Bothacking | -11 -10 -10 -10 -9 ------------ Run | Yrd Mat Min Exi Min Used RIF Installer . | . . . . . Robots Hacked . | . . . . . Non-combat . | . . . . . Combat . | . . . . . Robot Hacks Applied . | . . . . . Relay Couplers Released . | . . . . . Fabnet Peak Effective % . | . . . . . Robots Rewired . | . . . . . Allies Hacked . | . . . . . Hacks Repelled . | . . . . . Allies | -11 -10 -10 -10 -9 -------- Run | Yrd Mat Min Exi Min Total Allies . | . . . . . Largest Group . | . . . . . Highest-Rated Group . | . . . . . Highest-Rated Ally . | . . . . . Total Orders . | . . . . . Ally Attacks . | . . . . . Total Damage . | . . . . . Kills . | . . . . . Allies Corrupted . | . . . . . Allies Melted . | . . . . . Intel | -11 -10 -10 -10 -9 ------- Run | Yrd Mat Min Exi Min Active Infowar (turns) . | . . . . . Robot Analysis Total . | . . . . . Derelict Logs Recovered . | . . . . . Drone Launches . | . . . . . Drone Recoveries . | . . . . . Exploration | -11 -10 -10 -10 -9 ------------- Run | Yrd Mat Min Exi Min Turns Passed 2610 | 47 123 15 671 1754 Spaces Moved 718 | 72 84 13 408 141 Core 71 | 68 . . . 3 Treads . | . . . . . Legs 647 | 4 84 13 408 138 Wheels . | . . . . . Hover . | . . . . . Flight . | . . . . . Fastest Speed 50 | 50 120 120 120 680 Average Speed 333 | 53 120 120 164 1110 Slowest Speed 3350 | 120 120 120 750 3350 Overloaded Moves . | . . . . . Propulsion Burnouts . | . . . . . Robots Hopped . | . . . . . Potential Cave-ins . | . . . . . Cave-ins Triggered . | . . . . . Exploration Rate (%) 23 | 3 18 4 65 25 Regions Visited 4 Branch Regions 3 Pre-discovered Areas 1 | . . . 1 . Known Exits Taken . | . . . . . Unknown Exits Taken 4 | 1 1 1 1 . Scrap Searched . | . . . . . Spaces Dug . | . . . . . Terrain Destroyed 3 | . . . . 3 Melee . | . . . . . Projectile 3 | . . . . 3 AOE . | . . . . . Terrain Rammed . | . . . . . Walls Destroyed . | . . . . . Machines Disabled . | . . . . . Actions | -11 -10 -10 -10 -9 --------- Run | Yrd Mat Min Exi Min Total 912 | 80 106 12 412 302 Wait 160 | 5 19 . . 136 Move 714 | 71 83 12 407 141 Hop . | . . . . . Pick Up 10 | 2 4 . 1 3 Fast Attach 1 | . . . 1 . Attach 8 | 2 . . . 6 Detach . | . . . . . Swap . | . . . . . Drop . | . . . . . Fire 16 | . . . . 16 Melee . | . . . . . Ram . | . . . . . Kick . | . . . . . Crush . | . . . . . Escape Stasis . | . . . . . Rewire 3 | . . . 3 . Trap . | . . . . . Miscellaneous . | . . . . . Route ------- -11/Scrapyard -10/Materials -10/Mines -10/Exiles -9/Mines History --------- Turn | Location | Event 2 | -11/Scrapyard | Met Revision 17 4 | -11/Scrapyard | Discovered new exit (range 13) 48 | -11/Scrapyard | Entered Materials 116 | -10/Materials | Met 8R-AWN 158 | -10/Materials | Discovered new exit (range 11) 171 | -10/Materials | Entered Mines 173 | -10/Mines | Followed 8R-AWN into the Mines 181 | -10/Mines | Discovered new exit (range 5) 186 | -10/Mines | Entered Exiles 219 | -10/Exiles | Welcomed by 8R-AWN 249 | -10/Exiles | Met EX-HEX 312 | -10/Exiles | Build established: Mutant 342 | -10/Exiles | Met EX-BIN 492 | -10/Exiles | Met EX-DEC 529 | -10/Exiles | Learned location of Zion (-7) 604 | -10/Exiles | Discovered new exit (range 12) 857 | -10/Exiles | Entered Mines 951 | -9/Mines | Build established: Hauler-Mutant 1693 | -9/Mines | Lost 3 parts (2n1w) 2585 | -9/Mines | Core integrity fell below 50% 2608 | -9/Mines | Core integrity fell below 20% 2611 | -9/Mines | Destroyed by G-34 Mercenary with Small Laser Last Messages --------------- 01633_ Acquired Imp. Aluminum Leg. 01656_ Lgt. Assault Rifle destroyed. 01658_ Aluminum Leg destroyed. 01658_ G-34 Mercenary destroyed. 01662_ Imp. Aluminum Leg destroyed. 01662_ U-05 Engineer builds a Wall. 01686_ G-34 Mercenary destroyed. 01686_ U-05 Engineer builds a Wall. 01723_ Acquired Aluminum Leg. 01758_ Acquired Sml. Laser. 01759_ Acquired 15 matter. 02574_ C-30 ARC bursts open, deploying its payload. 02574_ G-47 Trooper unfolds itself. 02574_ G-34 Mercenary unfolds itself. 02575_ Mining Laser destroyed. 02600_ Aluminum Leg destroyed. 02601_ Humpback destroyed. 02605_ Critical hit (Burn: +37). 02609_ Sml. Laser destroyed. Map ----- +----------------------------------------------------+ | ?# #???#### #??????????????????????? | | ?# ##?# ## ##??????????????????????? | | ?## ## #####???????????????????????? | | ??## #????????????????????????????? | | ???# ##????????????????????????????? | | ???# ####?????????????????????????????? | | ???# ##????????????????????????????????? | | ???# #?????????????????????????????????? | | ???# ##????????????????????????????????? | | ???# %##????????????????????????????????? | | ???# ###???????????????????????????????? | | ???# !#???????????????????????????????? | | ??# ## #????????????????####???????????? | | ??# ## #???????????????# ##??????????? | | ??## ## #?????????????## ???????????? | | ???##### #????????????# ??????????? | | ???????# #???????????# ???????????? | | ???????# #?????????## ???????????? | | ???????# #???????## ???????????? | | ???????# ##??????# #??????????? | | ??????## ######## % ?????????????? | | ??????# #????????????????????? | | ?????# g##????????????????????? | | ?????# #### #?????????????????????? | | ?????# ##?##gg ##????????????????????? | | ?????# ##?## @ #????????????????????? | | ?????## ##### #????????????????????? | | ??????###### ##????????????????????? | | ??????????# ##?????????????????????? | | ??????????# ###??????????????????????? | | ??????????# ##????????????????????????? | | ??????????## #?????????????????????????? | | ???????##??## #?????????????????????????? | | ??????## #### #?????????????????????????? | | ??????# # ##????????????????????????? | | ??????# ##???????????????????????? | | ??????# #???????????????????????? | | ??????# ## ##???????????????????????? | | ??????###########????????????????????????? | | ?????????????????????????????????????????? | | ?????????????????????????????????????????? | | ?????????????????????????????????????????? | | ?????????????????????????????????????????? | | ?????????????????????????????????????????? | | ?????????????????????????????????????????? | | ?????????????????????????????????????????? | | ?????????????????????????????????????????? | | ?????????????????????????????????????????? | | ?????????????????????????????????????????? | | ?????????????????????????????????????????? | +----------------------------------------------------+ Best States ------------- Heat Dissipation 25 Energy Generation 5 Energy Capacity 100 Matter Stores 257 Matter Capacity 300 Sight Range 16 Terrain Scan Density 10 Evasion (%) 55 Item Schematics ----------------- None Robot Schematics ------------------ None Fabricated ------------ Nothing Repaired ---------- Nothing Studied --------- None Alien Tech Used ----------------- None Achievements -------------- Follow The Leader Librarian Challenges ------------ None Game ------ Seed ExplosiveTimingBuckler Manual? 0 Play Time 00:11:20 Cumulative 32.6 hours Start 2025.11.19 @ 19:00:12 End 2025.11.19 @ 19:10:27 Sessions 1 Manual Loads 0 Difficulty Rogue Special Mode None Game No. 99 Rogue 99 Adventurer 0 Explorer 0 Win Type - Total 0 Types 0/0/0/0/0/0/0/0/0/0 Lore% 12 Gallery% 24 Achievement% 18 Wizard Run 0 Options --------- Layout 1 ASCII 0 Keyboard 0 Movement Mouse Keybinds 0 Fullscreen 1 Font 24/Terminus Map View 50x35 Zoom Use 0% Tactical HUD 1 Map Filters NONE Filters NONE Steam 1 RUN: cbe8e869-893f-4308-a275-7ec950a9f63c